[Event "*** Titled Tuesday Blitz"]
[Site "Chess.com"]
[Date "2020.05.05"]
[Round "9"]
[White "ElGasanov"]
[Black "Petrosyan_Tigran"]
[Result "1-0"]
[WhiteElo "2718"]
[BlackElo "2538"]
[TimeControl "180+1"]
[EndTime "11:48:47 PDT"]
[Termination "ElGasanov won by resignation"]

1. Nf3 {[%clk 0:03:00.9]} 1... d5 {[%clk 0:02:59.3]} 2. d4 {[%clk 0:02:59.2]}
2... Nf6 {[%clk 0:02:58.2]} 3. e3 {[%clk 0:02:58.1]} 3... c6 {[%clk 0:02:57.3]}
4. c4 {[%clk 0:02:57.7]} 4... e6 {[%clk 0:02:56.3]} 5. Nc3 {[%clk 0:02:55.6]}
5... Nbd7 {[%clk 0:02:55.7]} 6. Be2 {[%clk 0:02:51.2]} 6... dxc4 {[%clk
0:02:55.4]} 7. a4 {[%clk 0:02:50.4]} 7... Bd6 {[%clk 0:02:46.7]} 8. Nd2 {[%clk
0:02:50]} 8... e5 {[%clk 0:02:41.2]} 9. Nxc4 {[%clk 0:02:50]} 9... Bc7 {[%clk
0:02:41.1]} 10. b3 {[%clk 0:02:36.4]} 10... O-O {[%clk 0:02:35.9]} 11. Ba3
{[%clk 0:02:34.5]} 11... Re8 {[%clk 0:02:33.4]} 12. O-O {[%clk 0:02:33.3]} 12...
exd4 {[%clk 0:02:32.4]} 13. Qxd4 {[%clk 0:02:32.6]} 13... Ne5 {[%clk 0:02:28.5]}
14. Nd6 {[%clk 0:02:21.6]} 14... Bxd6 {[%clk 0:02:28.5]} 15. Bxd6 {[%clk
0:02:19.6]} 15... Ng6 {[%clk 0:02:26.4]} 16. Rfd1 {[%clk 0:02:15.9]} 16... Be6
{[%clk 0:02:26.2]} 17. Qb4 {[%clk 0:02:08.8]} 17... Nd5 {[%clk 0:02:22.8]} 18.
Nxd5 {[%clk 0:02:04.7]} 18... Bxd5 {[%clk 0:02:22.8]} 19. a5 {[%clk 0:01:46.5]}
19... Re6 {[%clk 0:01:43]} 20. Bg3 {[%clk 0:01:44.1]} 20... Qe7 {[%clk
0:01:40.2]} 21. Qxe7 {[%clk 0:01:37]} 21... Rxe7 {[%clk 0:01:41.1]} 22. b4
{[%clk 0:01:24.2]} 22... a6 {[%clk 0:01:40.2]} 23. Rd4 {[%clk 0:01:23.9]} 23...
Re4 {[%clk 0:01:26.9]} 24. Rxe4 {[%clk 0:01:21.4]} 24... Bxe4 {[%clk 0:01:27.4]}
25. f3 {[%clk 0:01:22.1]} 25... Bd5 {[%clk 0:01:25.6]} 26. e4 {[%clk 0:01:20.5]}
26... Be6 {[%clk 0:01:25.2]} 27. Rd1 {[%clk 0:01:20]} 27... Kf8 {[%clk
0:01:24.9]} 28. Bd6+ {[%clk 0:01:04]} 28... Ke8 {[%clk 0:01:24.4]} 29. f4 {[%clk
0:01:04.7]} 29... Bb3 {[%clk 0:01:16.1]} 30. Rd4 {[%clk 0:00:53]} 30... Rd8
{[%clk 0:01:11.8]} 31. g3 {[%clk 0:00:51.9]} 31... Ne7 {[%clk 0:01:10.7]} 32.
Kf2 {[%clk 0:00:48.3]} 32... Nc8 {[%clk 0:00:47.7]} 33. Bc5 {[%clk 0:00:45.8]}
33... Rxd4 {[%clk 0:00:47.7]} 34. Bxd4 {[%clk 0:00:46.7]} 34... g6 {[%clk
0:00:46.3]} 35. Bc5 {[%clk 0:00:41.8]} 35... Kd7 {[%clk 0:00:40.5]} 36. Ke3
{[%clk 0:00:39.8]} 36... Nd6 {[%clk 0:00:36.6]} 37. Bxd6 {[%clk 0:00:39.4]}
37... Kxd6 {[%clk 0:00:36.7]} 38. Kd4 {[%clk 0:00:39.2]} 38... Be6 {[%clk
0:00:33.5]} 39. e5+ {[%clk 0:00:37.8]} 39... Kc7 {[%clk 0:00:33.4]} 40. Kc5
{[%clk 0:00:38]} 40... h5 {[%clk 0:00:32.8]} 41. Bf3 {[%clk 0:00:36.9]} 41...
Ba2 {[%clk 0:00:30.7]} 42. h3 {[%clk 0:00:36.3]} 42... Be6 {[%clk 0:00:30.7]}
43. g4 {[%clk 0:00:36.7]} 43... hxg4 {[%clk 0:00:30.7]} 44. Bxg4 {[%clk
0:00:32.4]} 44... Ba2 {[%clk 0:00:29.3]} 45. f5 {[%clk 0:00:31.2]} 45... gxf5
{[%clk 0:00:14.6]} 46. Bxf5 {[%clk 0:00:30.7]} 46... Bb3 {[%clk 0:00:14.2]} 47.
h4 {[%clk 0:00:30.3]} 47... Bd1 {[%clk 0:00:14.3]} 48. Bd3 {[%clk 0:00:25.2]}
48... Bh5 {[%clk 0:00:13.9]} 49. Be4 {[%clk 0:00:25]} 49... Bg4 {[%clk
0:00:11.5]} 50. Bh7 {[%clk 0:00:23.5]} 50... Bh5 {[%clk 0:00:11.6]} 51. Bf5
{[%clk 0:00:23.2]} 51... Bf3 {[%clk 0:00:09.9]} 52. Bd3 {[%clk 0:00:21.9]} 52...
Bh5 {[%clk 0:00:09.8]} 53. Bc4 {[%clk 0:00:21.9]} 53... Bg6 {[%clk 0:00:09.7]}
54. Be2 {[%clk 0:00:21.5]} 54... Bf5 {[%clk 0:00:08.2]} 55. h5 {[%clk
0:00:21.8]} 55... Bh7 {[%clk 0:00:08.1]} 56. Bc4 {[%clk 0:00:21]} 56... Bg8
{[%clk 0:00:08.1]} 57. h6 {[%clk 0:00:20.6]} 57... Kc8 {[%clk 0:00:06.8]} 58.
Kb6 {[%clk 0:00:19.6]} 58... Kb8 {[%clk 0:00:06.3]} 59. Bxf7 {[%clk 0:00:19.8]}
59... Bxf7 {[%clk 0:00:06.6]} 60. h7 {[%clk 0:00:19.3]} 1-0

[Event "*** Titled Tuesday Blitz"]
[Site "Chess.com"]
[Date "2020.05.05"]
[Round "9"]
[White "GM4life"]
[Black "DishonorOnYourCow"]
[Result "1-0"]
[WhiteElo "2187"]
[BlackElo "2320"]
[TimeControl "180+1"]
[EndTime "11:48:47 PDT"]
[Termination "GM4life won on time"]

1. d4 {[%clk 0:03:00.5]} 1... Nf6 {[%clk 0:02:55.5]} 2. c4 {[%clk 0:03:00.9]}
2... g6 {[%clk 0:02:55.1]} 3. Nc3 {[%clk 0:03:00.5]} 3... d5 {[%clk 0:02:54.4]}
4. cxd5 {[%clk 0:03:00.6]} 4... Nxd5 {[%clk 0:02:54.8]} 5. e4 {[%clk 0:03:01.1]}
5... Nxc3 {[%clk 0:02:55.2]} 6. bxc3 {[%clk 0:03:01.7]} 6... Bg7 {[%clk
0:02:55.5]} 7. Nf3 {[%clk 0:02:57]} 7... c5 {[%clk 0:02:54.9]} 8. Be3 {[%clk
0:02:56.8]} 8... O-O {[%clk 0:02:54.4]} 9. Qd2 {[%clk 0:02:54.4]} 9... b6 {[%clk
0:02:52.3]} 10. Bd3 {[%clk 0:02:51.4]} 10... Nd7 {[%clk 0:02:49.4]} 11. O-O
{[%clk 0:02:50.9]} 11... Bb7 {[%clk 0:02:44]} 12. Rad1 {[%clk 0:02:37.7]} 12...
Nf6 {[%clk 0:02:20.4]} 13. d5 {[%clk 0:02:34.3]} 13... e6 {[%clk 0:02:11.2]} 14.
c4 {[%clk 0:02:32.7]} 14... exd5 {[%clk 0:02:10.7]} 15. exd5 {[%clk 0:02:22.1]}
15... Re8 {[%clk 0:02:10.4]} 16. Bg5 {[%clk 0:02:19.5]} 16... Qd7 {[%clk
0:02:09.4]} 17. Rfe1 {[%clk 0:02:17.7]} 17... Rxe1+ {[%clk 0:01:54.7]} 18. Rxe1
{[%clk 0:02:16.1]} 18... Re8 {[%clk 0:01:55.1]} 19. h3 {[%clk 0:02:11.7]} 19...
Ba6 {[%clk 0:01:44.3]} 20. Rxe8+ {[%clk 0:01:09.9]} 20... Nxe8 {[%clk
0:01:42.6]} 21. Qf4 {[%clk 0:01:07.3]} 21... f6 {[%clk 0:00:47.3]} 22. Bh6
{[%clk 0:01:03.3]} 22... g5 {[%clk 0:00:42.6]} 23. Bf5 {[%clk 0:00:45.2]} 23...
gxf4 {[%clk 0:00:25.4]} 24. Bxd7 {[%clk 0:00:43.8]} 24... Bxh6 {[%clk
0:00:24.2]} 25. Bxe8 {[%clk 0:00:43.9]} 25... Bxc4 {[%clk 0:00:18.8]} 26. d6
{[%clk 0:00:43.7]} 26... Bf8 {[%clk 0:00:17.4]} 27. Nd2 {[%clk 0:00:35.4]} 27...
Be6 {[%clk 0:00:16.2]} 28. Ne4 {[%clk 0:00:30.7]} 28... f5 {[%clk 0:00:11.9]}
29. d7 {[%clk 0:00:22.9]} 29... Be7 {[%clk 0:00:10.9]} 30. Nd6 {[%clk
0:00:23.1]} 30... Kf8 {[%clk 0:00:10]} 31. Nb7 {[%clk 0:00:20]} 31... Bd5 {[%clk
0:00:09.7]} 32. Nd6 {[%clk 0:00:15.9]} 32... Bd8 {[%clk 0:00:08.8]} 33. Nxf5
{[%clk 0:00:14.9]} 33... c4 {[%clk 0:00:07.8]} 34. Kf1 {[%clk 0:00:13.8]} 34...
c3 {[%clk 0:00:07.7]} 35. Ke2 {[%clk 0:00:13.7]} 35... c2 {[%clk 0:00:07.5]} 36.
Kd2 {[%clk 0:00:13.4]} 36... Bxg2 {[%clk 0:00:06.5]} 37. h4 {[%clk 0:00:11.9]}
37... Be4 {[%clk 0:00:06.2]} 38. Nd4 {[%clk 0:00:11]} 38... Ke7 {[%clk
0:00:05.2]} 39. Nxc2 {[%clk 0:00:09.7]} 39... Bd5 {[%clk 0:00:04.2]} 40. Nb4
{[%clk 0:00:09.2]} 40... Be6 {[%clk 0:00:03.9]} 41. Nc6+ {[%clk 0:00:09.1]}
41... Kd6 {[%clk 0:00:04]} 42. Nxd8 {[%clk 0:00:09.6]} 42... Bxd7 {[%clk
0:00:04.1]} 43. Nf7+ {[%clk 0:00:07.6]} 43... Ke7 {[%clk 0:00:03.6]} 44. Bxd7
{[%clk 0:00:08]} 44... Kxd7 {[%clk 0:00:03.9]} 45. Ng5 {[%clk 0:00:07.9]} 45...
h6 {[%clk 0:00:04]} 46. Nh3 {[%clk 0:00:08.2]} 46... Ke6 {[%clk 0:00:04.2]} 47.
Nxf4+ {[%clk 0:00:08.6]} 47... Kf5 {[%clk 0:00:04.4]} 48. Ke3 {[%clk 0:00:09.1]}
48... Kg4 {[%clk 0:00:04.6]} 49. h5 {[%clk 0:00:07.7]} 49... Kg5 {[%clk
0:00:04.2]} 50. a4 {[%clk 0:00:07.7]} 50... a6 {[%clk 0:00:03.1]} 51. Ke4 {[%clk
0:00:08.1]} 51... b5 {[%clk 0:00:03.2]} 52. axb5 {[%clk 0:00:07.2]} 52... axb5
{[%clk 0:00:03]} 53. Nd3 {[%clk 0:00:07.9]} 53... Kxh5 {[%clk 0:00:02.4]} 54.
Kf5 {[%clk 0:00:08.3]} 54... Kh4 {[%clk 0:00:02.2]} 55. Kg6 {[%clk 0:00:08.7]}
55... h5 {[%clk 0:00:02.1]} 56. f4 {[%clk 0:00:07.3]} 1-0

[Event "*** Titled Tuesday Blitz"]
[Site "Chess.com"]
[Date "2020.05.05"]
[Round "9"]
[White "ThePatrick27"]
[Black "yarosavich"]
[Result "1-0"]
[WhiteElo "2551"]
[BlackElo "2692"]
[TimeControl "180+1"]
[EndTime "11:48:48 PDT"]
[Termination "ThePatrick27 won by resignation"]

1. d4 {[%clk 0:02:57]} 1... d5 {[%clk 0:02:59.7]} 2. c4 {[%clk 0:02:56.4]} 2...
e6 {[%clk 0:02:58.3]} 3. Nc3 {[%clk 0:02:53.7]} 3... Be7 {[%clk 0:02:58.4]} 4.
Nf3 {[%clk 0:02:53.7]} 4... Nf6 {[%clk 0:02:58.4]} 5. Bg5 {[%clk 0:02:52.8]}
5... h6 {[%clk 0:02:56.5]} 6. Bh4 {[%clk 0:02:50]} 6... O-O {[%clk 0:02:56.5]}
7. cxd5 {[%clk 0:02:49.9]} 7... exd5 {[%clk 0:02:48.8]} 8. e3 {[%clk 0:02:49.6]}
8... c6 {[%clk 0:02:42.6]} 9. Bd3 {[%clk 0:02:48.2]} 9... Nbd7 {[%clk
0:02:41.3]} 10. O-O {[%clk 0:02:45.7]} 10... Re8 {[%clk 0:02:40]} 11. Rc1 {[%clk
0:02:45.3]} 11... Ne4 {[%clk 0:02:36.8]} 12. Bxe7 {[%clk 0:02:38]} 12... Qxe7
{[%clk 0:02:32.1]} 13. a3 {[%clk 0:02:23]} 13... Nd6 {[%clk 0:02:28.5]} 14. b4
{[%clk 0:02:14.2]} 14... a6 {[%clk 0:02:23.9]} 15. Qb3 {[%clk 0:02:10.7]} 15...
Nb6 {[%clk 0:02:10.3]} 16. Nd2 {[%clk 0:02:00.4]} 16... Bf5 {[%clk 0:01:59.9]}
17. Be2 {[%clk 0:01:56.4]} 17... Qg5 {[%clk 0:01:52.2]} 18. Nf3 {[%clk
0:01:49.6]} 18... Qf6 {[%clk 0:01:45.4]} 19. Ne5 {[%clk 0:01:41.7]} 19... Be6
{[%clk 0:01:30.4]} 20. a4 {[%clk 0:01:38.7]} 20... Nbc4 {[%clk 0:01:26.8]} 21.
Nxc4 {[%clk 0:01:32.5]} 21... dxc4 {[%clk 0:01:12.5]} 22. Qd1 {[%clk 0:01:15.1]}
22... b5 {[%clk 0:01:10.1]} 23. a5 {[%clk 0:01:11.5]} 23... Bd5 {[%clk
0:01:02.6]} 24. Bf3 {[%clk 0:01:09.2]} 24... Bxf3 {[%clk 0:00:39.2]} 25. Qxf3
{[%clk 0:01:10.1]} 25... Qxf3 {[%clk 0:00:39]} 26. gxf3 {[%clk 0:01:10.9]} 26...
Rad8 {[%clk 0:00:38.9]} 27. e4 {[%clk 0:01:04.7]} 27... Nc8 {[%clk 0:00:32.7]}
28. Rcd1 {[%clk 0:00:56.7]} 28... Ne7 {[%clk 0:00:33.1]} 29. Rfe1 {[%clk
0:00:54.5]} 29... Ng6 {[%clk 0:00:33.3]} 30. d5 {[%clk 0:00:47.3]} 30... Ne5
{[%clk 0:00:28.5]} 31. dxc6 {[%clk 0:00:44.3]} 31... Nxf3+ {[%clk 0:00:20.3]}
32. Kg2 {[%clk 0:00:42.8]} 32... Nxe1+ {[%clk 0:00:21.2]} 33. Rxe1 {[%clk
0:00:43.2]} 33... Rd6 {[%clk 0:00:13.8]} 34. c7 {[%clk 0:00:42.4]} 34... Rc6
{[%clk 0:00:12.2]} 35. Nd5 {[%clk 0:00:41.7]} 35... Kf8 {[%clk 0:00:12]} 36. Kf3
{[%clk 0:00:39.5]} 36... Rc8 {[%clk 0:00:08.8]} 37. Ke3 {[%clk 0:00:35.3]} 37...
R8xc7 {[%clk 0:00:09.3]} 38. Nxc7 {[%clk 0:00:35.1]} 38... Rxc7 {[%clk
0:00:10.2]} 39. Kd4 {[%clk 0:00:33.5]} 39... Ke7 {[%clk 0:00:06.2]} 40. e5
{[%clk 0:00:32.6]} 40... Ke6 {[%clk 0:00:05.8]} 41. f4 {[%clk 0:00:32.4]} 41...
c3 {[%clk 0:00:05.3]} 42. Kd3 {[%clk 0:00:29.3]} 42... Rc4 {[%clk 0:00:04.8]}
43. Rg1 {[%clk 0:00:25.9]} 43... c2 {[%clk 0:00:03.9]} 44. Kd2 {[%clk
0:00:25.6]} 44... g6 {[%clk 0:00:03.4]} 45. h3 {[%clk 0:00:24.4]} 45... Rxf4
{[%clk 0:00:03.4]} 46. Kxc2 {[%clk 0:00:23.4]} 46... Rxb4 {[%clk 0:00:04]} 47.
Rf1 {[%clk 0:00:22.7]} 47... Rc4+ {[%clk 0:00:04.2]} 48. Kd3 {[%clk 0:00:22.6]}
48... Rc5 {[%clk 0:00:04.6]} 49. Rf6+ {[%clk 0:00:22.6]} 49... Ke7 {[%clk
0:00:05]} 50. Rxa6 {[%clk 0:00:23]} 50... Rxe5 {[%clk 0:00:05.1]} 51. Rb6 {[%clk
0:00:23.4]} 51... b4 {[%clk 0:00:03.8]} 52. a6 {[%clk 0:00:23.5]} 52... Ra5
{[%clk 0:00:04]} 53. Kc4 {[%clk 0:00:23.9]} 53... b3 {[%clk 0:00:03.4]} 54. Kxb3
{[%clk 0:00:23.9]} 54... h5 {[%clk 0:00:03.8]} 55. Kb4 {[%clk 0:00:24.4]} 55...
Ra1 {[%clk 0:00:04.3]} 56. Kc5 {[%clk 0:00:24.3]} 56... Kf8 {[%clk 0:00:04.4]}
57. Kc6 {[%clk 0:00:24.2]} 57... g5 {[%clk 0:00:04.9]} 58. Kb7 {[%clk
0:00:24.2]} 58... g4 {[%clk 0:00:05]} 59. hxg4 {[%clk 0:00:25.1]} 59... hxg4
{[%clk 0:00:05.8]} 60. a7 {[%clk 0:00:24.2]} 60... Rxa7+ {[%clk 0:00:06.4]} 61.
Kxa7 {[%clk 0:00:25.1]} 61... Kg7 {[%clk 0:00:06.9]} 62. Ka6 {[%clk 0:00:24.2]}
62... f5 {[%clk 0:00:06.4]} 63. Kb5 {[%clk 0:00:24.3]} 63... g3 {[%clk
0:00:06.7]} 64. Kc4 {[%clk 0:00:24.6]} 64... f4 {[%clk 0:00:05.2]} 65. Kd3
{[%clk 0:00:24.7]} 65... f3 {[%clk 0:00:05.6]} 66. Ke3 {[%clk 0:00:25.1]} 66...
g2 {[%clk 0:00:05.9]} 67. Kf2 {[%clk 0:00:25.3]} 1-0

[Event "*** Titled Tuesday Blitz"]
[Site "Chess.com"]
[Date "2020.05.05"]
[Round "9"]
[White "MarcoCorvi"]
[Black "Shushik"]
[Result "0-1"]
[WhiteElo "2224"]
[BlackElo "2061"]
[TimeControl "180+1"]
[EndTime "11:48:50 PDT"]
[Termination "Shushik won by resignation"]

1. c4 {[%clk 0:03:00.9]} 1... e6 {[%clk 0:02:59.8]} 2. Nc3 {[%clk 0:02:59.8]}
2... d5 {[%clk 0:02:59.8]} 3. cxd5 {[%clk 0:03:00]} 3... exd5 {[%clk 0:02:59.2]}
4. d4 {[%clk 0:03:00.9]} 4... Nf6 {[%clk 0:02:58.9]} 5. Bg5 {[%clk 0:02:59.8]}
5... c6 {[%clk 0:02:57.4]} 6. e3 {[%clk 0:02:59.3]} 6... Be7 {[%clk 0:02:56.2]}
7. Bd3 {[%clk 0:02:58.4]} 7... Bg4 {[%clk 0:02:55]} 8. Qc2 {[%clk 0:02:57.3]}
8... Bh5 {[%clk 0:02:54.8]} 9. Nge2 {[%clk 0:02:56.9]} 9... Bg6 {[%clk
0:02:53.4]} 10. O-O {[%clk 0:02:56.5]} 10... Na6 {[%clk 0:02:52.2]} 11. a3
{[%clk 0:02:55.4]} 11... Nc7 {[%clk 0:02:49.6]} 12. Rae1 {[%clk 0:02:54.7]}
12... O-O {[%clk 0:02:49.3]} 13. Ng3 {[%clk 0:02:49.4]} 13... Ne6 {[%clk
0:02:39.9]} 14. Bxf6 {[%clk 0:02:47.6]} 14... Bxf6 {[%clk 0:02:39.2]} 15. f4
{[%clk 0:02:39.1]} 15... Bxd3 {[%clk 0:02:36.7]} 16. Qxd3 {[%clk 0:02:40]} 16...
Re8 {[%clk 0:02:07.4]} 17. Kh1 {[%clk 0:02:01.8]} 17... Bh4 {[%clk 0:02:05.6]}
18. Rf3 {[%clk 0:01:54.4]} 18... Qb6 {[%clk 0:01:47]} 19. Re2 {[%clk 0:01:48.7]}
19... Bxg3 {[%clk 0:01:39.2]} 20. Rxg3 {[%clk 0:01:45.8]} 20... Rad8 {[%clk
0:01:35.3]} 21. f5 {[%clk 0:01:44.6]} 21... Nf8 {[%clk 0:01:34.3]} 22. f6 {[%clk
0:01:37]} 22... Ng6 {[%clk 0:01:32.5]} 23. fxg7 {[%clk 0:01:37]} 23... c5 {[%clk
0:01:15.7]} 24. h4 {[%clk 0:01:27.6]} 24... cxd4 {[%clk 0:01:09.2]} 25. exd4
{[%clk 0:01:25.3]} 25... Rxe2 {[%clk 0:00:54.6]} 26. Nxe2 {[%clk 0:01:26.2]}
26... Qf6 {[%clk 0:00:43.8]} 27. h5 {[%clk 0:01:19.9]} 27... Nf4 {[%clk
0:00:41.6]} 28. Nxf4 {[%clk 0:01:16.2]} 28... Qxf4 {[%clk 0:00:40.8]} 29. Qf3
{[%clk 0:01:06.9]} 29... Qh4+ {[%clk 0:00:34.9]} 30. Rh3 {[%clk 0:01:06.2]}
30... Qxd4 {[%clk 0:00:29.3]} 31. h6 {[%clk 0:01:04.9]} 31... Re8 {[%clk
0:00:24]} 32. Kh2 {[%clk 0:01:04.7]} 32... Qe5+ {[%clk 0:00:23]} 33. Rg3 {[%clk
0:01:01.4]} 33... Re6 {[%clk 0:00:20.4]} 34. Qc3 {[%clk 0:00:50.1]} 34... Rxh6+
{[%clk 0:00:19.6]} 35. Kg1 {[%clk 0:00:50.1]} 35... Qxc3 {[%clk 0:00:17.7]} 36.
Rxc3 {[%clk 0:00:46.8]} 36... Kxg7 {[%clk 0:00:17.3]} 37. Rc7 {[%clk 0:00:46.2]}
37... Rb6 {[%clk 0:00:17.5]} 38. b4 {[%clk 0:00:44.8]} 38... Kf6 {[%clk
0:00:17.7]} 39. Kf2 {[%clk 0:00:41.5]} 39... Ke6 {[%clk 0:00:17.2]} 40. Ke3
{[%clk 0:00:41.5]} 40... h5 {[%clk 0:00:17.1]} 41. Kd4 {[%clk 0:00:40.2]} 41...
h4 {[%clk 0:00:16.8]} 42. Rc5 {[%clk 0:00:36.4]} 42... Rc6 {[%clk 0:00:15.4]}
43. Ra5 {[%clk 0:00:21.9]} 43... Rc4+ {[%clk 0:00:14.9]} 44. Kd3 {[%clk
0:00:21.3]} 44... a6 {[%clk 0:00:14.6]} 45. b5 {[%clk 0:00:21]} 45... Rc5 {[%clk
0:00:14.1]} 46. a4 {[%clk 0:00:19.3]} 46... axb5 {[%clk 0:00:14.2]} 47. axb5
{[%clk 0:00:18.6]} 47... b6 {[%clk 0:00:14.5]} 48. Ra4 {[%clk 0:00:16.7]} 48...
Rxb5 {[%clk 0:00:14.6]} 49. Rxh4 {[%clk 0:00:17.1]} 49... Rb3+ {[%clk
0:00:14.8]} 50. Kd2 {[%clk 0:00:17]} 50... Rb2+ {[%clk 0:00:14.2]} 51. Kd3
{[%clk 0:00:17.2]} 51... Rxg2 {[%clk 0:00:14.1]} 52. Rh6+ {[%clk 0:00:17.7]}
52... f6 {[%clk 0:00:13.9]} 53. Rh8 {[%clk 0:00:17.3]} 53... Ke5 {[%clk
0:00:13.7]} 54. Re8+ {[%clk 0:00:16.3]} 54... Kf4 {[%clk 0:00:13.8]} 55. Kd4
{[%clk 0:00:16.8]} 55... f5 {[%clk 0:00:13.9]} 56. Kxd5 {[%clk 0:00:16.9]} 56...
Kf3 {[%clk 0:00:14.1]} 57. Ke5 {[%clk 0:00:15.6]} 57... Re2+ {[%clk 0:00:13.5]}
58. Kxf5 {[%clk 0:00:14.5]} 58... Rxe8 {[%clk 0:00:13.5]} 0-1

[Event "*** Titled Tuesday Blitz"]
[Site "Chess.com"]
[Date "2020.05.05"]
[Round "9"]
[White "tan275"]
[Black "Ariadna_Atreides"]
[Result "0-1"]
[WhiteElo "2164"]
[BlackElo "2011"]
[TimeControl "180+1"]
[EndTime "11:48:50 PDT"]
[Termination "Ariadna_Atreides won on time"]

1. d4 {[%clk 0:03:00.9]} 1... e6 {[%clk 0:02:59.4]} 2. c4 {[%clk 0:03:01.8]}
2... Bb4+ {[%clk 0:02:58.5]} 3. Bd2 {[%clk 0:03:00.7]} 3... Qe7 {[%clk 0:02:58]}
4. g3 {[%clk 0:02:59.1]} 4... c5 {[%clk 0:02:51.6]} 5. Nf3 {[%clk 0:02:54.7]}
5... Nc6 {[%clk 0:02:49.9]} 6. Bxb4 {[%clk 0:02:51.2]} 6... cxb4 {[%clk
0:02:44.6]} 7. Bg2 {[%clk 0:02:50.8]} 7... Nf6 {[%clk 0:02:43.7]} 8. a3 {[%clk
0:02:50.3]} 8... bxa3 {[%clk 0:02:41.4]} 9. Nxa3 {[%clk 0:02:46.4]} 9... O-O
{[%clk 0:02:29.6]} 10. O-O {[%clk 0:02:43.9]} 10... d5 {[%clk 0:02:27.8]} 11. c5
{[%clk 0:02:37]} 11... Bd7 {[%clk 0:02:19.6]} 12. Rb1 {[%clk 0:02:23.5]} 12...
b6 {[%clk 0:02:16.6]} 13. b4 {[%clk 0:02:22.6]} 13... a5 {[%clk 0:02:10.1]} 14.
b5 {[%clk 0:02:21.2]} 14... Nb4 {[%clk 0:02:06.6]} 15. c6 {[%clk 0:02:19.1]}
15... Bc8 {[%clk 0:02:01.5]} 16. Nc2 {[%clk 0:02:16.7]} 16... Nxc2 {[%clk
0:01:56.5]} 17. Qxc2 {[%clk 0:02:17.3]} 17... Qc7 {[%clk 0:01:55.4]} 18. Ne5
{[%clk 0:02:14.2]} 18... Ne8 {[%clk 0:01:51.8]} 19. e4 {[%clk 0:02:11.1]} 19...
dxe4 {[%clk 0:01:40.5]} 20. Bxe4 {[%clk 0:02:08]} 20... g6 {[%clk 0:01:27.4]}
21. h4 {[%clk 0:01:58.2]} 21... Nd6 {[%clk 0:01:26.5]} 22. Bd3 {[%clk
0:01:48.1]} 22... f6 {[%clk 0:01:20.1]} 23. Nf3 {[%clk 0:01:37.7]} 23... Kg7
{[%clk 0:00:52.8]} 24. h5 {[%clk 0:01:32.3]} 24... f5 {[%clk 0:00:41]} 25. Ne5
{[%clk 0:01:16.3]} 25... g5 {[%clk 0:00:27.5]} 26. Kg2 {[%clk 0:01:12.1]} 26...
Ra7 {[%clk 0:00:21.7]} 27. h6+ {[%clk 0:01:09.3]} 27... Kh8 {[%clk 0:00:11.8]}
28. Qe2 {[%clk 0:00:57.6]} 28... f4 {[%clk 0:00:10.2]} 29. Qh5 {[%clk
0:00:52.1]} 29... Nf5 {[%clk 0:00:07]} 30. Bxf5 {[%clk 0:00:34.9]} 30... exf5
{[%clk 0:00:06.4]} 31. Rfe1 {[%clk 0:00:32]} 31... fxg3 {[%clk 0:00:05.7]} 32.
fxg3 {[%clk 0:00:30.8]} 32... Be6 {[%clk 0:00:05.2]} 33. Kh2 {[%clk 0:00:28.2]}
33... f4 {[%clk 0:00:04.6]} 34. gxf4 {[%clk 0:00:23.6]} 34... gxf4 {[%clk
0:00:04.3]} 35. Qf3 {[%clk 0:00:13.7]} 35... Qe7 {[%clk 0:00:03.7]} 36. Qh5
{[%clk 0:00:08.1]} 36... Qf6 {[%clk 0:00:03.4]} 37. Rg1 {[%clk 0:00:06.6]} 37...
f3 {[%clk 0:00:03.2]} 38. Rg7 {[%clk 0:00:03.5]} 38... Rxg7 {[%clk 0:00:01.7]}
39. hxg7+ {[%clk 0:00:02.9]} 39... Qxg7 {[%clk 0:00:02.6]} 40. Rg1 {[%clk
0:00:03.5]} 40... Qf6 {[%clk 0:00:02.3]} 41. Kh1 {[%clk 0:00:03.1]} 41... f2
{[%clk 0:00:01.9]} 42. Rf1 {[%clk 0:00:03.5]} 42... Qf4 {[%clk 0:00:01.5]} 43.
Qe2 {[%clk 0:00:03.4]} 43... Bd5+ {[%clk 0:00:01.1]} 44. Nf3 {[%clk 0:00:01]}
44... Qh4+ {[%clk 0:00:01.5]} 0-1